fUST/lending_fUST_20250905
["ID","MTS","AMOUNT","RATE_DAILY","PERIOD"]
[383610898,1757032233314,-480.0,0.00015342,2]
[383610900,1757032233324,-480.0,0.00015342,2]
[383610902,1757032233333,-313.06,0.00015342,2]
[383610904,1757032233343,-480.0,0.00015342,2]
[383610906,1757032233352,-312.8,0.00015342,2]
[383610908,1757032233361,-332.35,0.00015342,2]
[383610910,1757032233371,-480.0,0.00015342,2]
[383610912,1757032233380,-480.0,0.00015342,2]
[383610914,1757032233390,-480.0,0.00015342,2]
[383610916,1757032233400,-480.0,0.00015342,2]
[383610918,1757032233409,-369.01166417,0.00015342,2]
[383610920,1757032233422,-110.98833583,0.00015342,2]
[383610922,1757032233431,-480.0,0.00015342,2]
[383610924,1757032233441,-480.0,0.00015342,2]
[383610926,1757032233450,-186.55579662,0.00015342,2]
[383610928,1757032233459,-480.0,0.00015342,2]
[383610930,1757032233469,-480.0,0.00015342,2]
[383610932,1757032233478,-480.0,0.00015342,2]
[383610934,1757032233488,-480.0,0.00015342,2]
[383610936,1757032233497,-480.0,0.00015342,2]
[383610938,1757032233506,-480.0,0.00015342,2]
[383610940,1757032233516,-480.0,0.00015342,2]
[383610942,1757032233525,-480.0,0.00015342,2]
[383610944,1757032233536,-480.0,0.00015342,2]
[383610946,1757032233546,-484.05125708,0.00015342,2]
[383610948,1757032233555,-480.0,0.00015342,2]
[383610949,1757032233564,-485.78196266,0.00015342,2]
[383610951,1757032233574,-480.0,0.00015342,2]
[383610953,1757032233583,-480.0,0.00015342,2]
[383610956,1757032233594,-480.0,0.00015342,2]
[383610958,1757032233604,-548.49334807,0.00015342,2]
[383610959,1757032233613,-480.0,0.00015342,2]
[383610961,1757032233623,-480.0,0.00015342,2]
[383610963,1757032233632,-480.0,0.00015342,2]
[383610965,1757032233642,-500.0,0.00015342,2]
[383610967,1757032233652,-480.0,0.00015342,2]
[383610969,1757032233661,-480.0,0.00015342,2]
[383610971,1757032233671,-463.40787608,0.00015342,2]
[383610973,1757032233685,-480.0,0.00015342,2]
[383610975,1757032233695,-480.0,0.00015342,2]
[383610977,1757032233705,-480.0,0.00015342,2]
[383610979,1757032233715,-484.81565405,0.00015342,2]
[383610981,1757032233725,-480.0,0.00015342,2]
[383610983,1757032233735,-480.0,0.00015342,2]
[383610985,1757032233745,-480.0,0.00015342,2]
[383610987,1757032233755,-480.0,0.00015342,2]
[383610989,1757032233765,-480.0,0.00015342,2]
[383610991,1757032233775,-481.32801457,0.00015342,2]
[383610993,1757032233784,-480.0,0.00015342,2]
[383610995,1757032233793,-480.0,0.00015342,2]
[383610997,1757032233803,-480.0,0.00015342,2]
[383610999,1757032233811,-480.0,0.00015342,2]
[383611000,1757032233821,-519.71,0.00015342,2]
[383611002,1757032233830,-480.0,0.00015342,2]
[383611004,1757032233841,-480.0,0.00015342,2]
[383611006,1757032233851,-480.0,0.00015342,2]
[383611008,1757032233860,-480.0,0.00015342,2]
[383611010,1757032233869,-480.0,0.00015342,2]
[383611012,1757032233879,-480.0,0.00015342,2]
[383611014,1757032233888,-480.0,0.00015342,2]
[383611016,1757032233898,-480.0,0.00015342,2]
[383611018,1757032233908,-480.0,0.00015342,2]
[383611020,1757032233918,-480.0,0.00015342,2]
[383611022,1757032233928,-480.0,0.00015342,2]
[383611024,1757032233939,-153.16349277,0.00015342,2]
[383611025,1757032233948,-482.04704976,0.00015342,2]
[383611026,1757032233959,-480.0,0.00015342,2]
[383611027,1757032233968,-567.37918417,0.00015342,2]
[383611028,1757032233977,-480.0,0.00015342,2]
[383611029,1757032233986,-480.0,0.00015342,2]
[383611030,1757032233996,-480.0,0.00015342,2]
[383611031,1757032234005,-461.53925618,0.00015342,2]
[383611032,1757032234015,-480.0,0.00015342,2]
[383611033,1757032234024,-480.0,0.00015342,2]
[383611034,1757032234034,-21110.6557192,0.00015343,2]
[383611035,1757032234043,-500.0,0.00015373,2]
[383611036,1757032234054,-500.0,0.00015373,2]
[383611037,1757032234063,-500.0,0.00015373,2]
[383611038,1757032234074,-500.0,0.00015373,2]
[383611039,1757032234083,-500.0,0.00015373,2]
[383611040,1757032234093,-500.0,0.00015373,2]
[383611041,1757032234103,-500.0,0.00015373,2]
[383611042,1757032234113,-500.0,0.00015373,2]
[383611043,1757032234122,-500.0,0.00015373,2]
[383611044,1757032234132,-480.0,0.00015439,2]
[383611045,1757032234142,-480.0,0.00015439,2]
[383611046,1757032234152,-480.0,0.00015439,2]
[383611047,1757032234162,-480.0,0.00015439,2]
[383611048,1757032234172,-480.0,0.0001544,2]
[383611049,1757032234181,-187.69223325,0.0001544,2]
[383611050,1757032234191,-234.70078661,0.0001544,2]
[383611051,1757032234201,-500.0,0.0001544,2]
[383611052,1757032234210,-1000.0,0.00015441,2]
[383611053,1757032234219,-1000.0,0.00015441,2]
[383611054,1757032234229,-1000.0,0.00015441,2]
[383611055,1757032234239,-1000.0,0.00015441,2]
[383611056,1757032234248,-1000.0,0.00015441,2]
[383611057,1757032234258,-480.0,0.00015442,2]
[383611058,1757032234268,-480.0,0.00015442,2]
[383611059,1757032234277,-480.0,0.00015442,2]
[383611060,1757032234286,-302.39443742,0.00015516,2]
[383611061,1757032234294,-271.33691245,0.00015614,2]
[383611062,1757032234304,-500.0,0.00015614,2]
[383611063,1757032234313,-500.0,0.00015614,2]
[383611064,1757032234323,-500.0,0.00015614,2]
[383611065,1757032234332,-500.0,0.00015614,2]
[383611066,1757032234341,-500.0,0.00015614,2]
[383611067,1757032234351,-500.0,0.00015614,2]
[383611068,1757032234360,-500.0,0.00015614,2]
[383611069,1757032234370,-500.0,0.00015614,2]
[383611070,1757032234380,-500.0,0.00015614,2]
[383611071,1757032234389,-500.0,0.00015614,2]
[383611072,1757032234399,-480.0,0.00015615,2]
[383611073,1757032234408,-480.0,0.00015615,2]
[383611074,1757032234418,-480.0,0.00015615,2]
[383611075,1757032234427,-480.0,0.00015615,2]
[383611076,1757032234436,-480.0,0.00015615,2]
[383611077,1757032234446,-480.0,0.00015615,2]
[383611078,1757032234455,-480.0,0.00015615,2]
[383611079,1757032234464,-480.0,0.00015615,2]
[383611080,1757032234474,-480.0,0.00015615,2]
[383611081,1757032234483,-480.0,0.00015615,2]
[383611082,1757032234492,-480.0,0.00015615,2]
[383611083,1757032234502,-480.0,0.00015615,2]
[383611084,1757032234511,-480.0,0.00015615,2]
[383611085,1757032234521,-480.0,0.00015615,2]
[383611086,1757032234530,-480.0,0.00015615,2]
[383611087,1757032234539,-480.0,0.00015615,2]
[383611088,1757032234549,-480.0,0.00015615,2]
[383611089,1757032234559,-480.0,0.00015615,2]
[383611090,1757032234568,-480.0,0.00015615,2]
[383611091,1757032234577,-480.0,0.00015615,2]
[383611092,1757032234587,-480.0,0.00015615,2]
[383611093,1757032234596,-480.0,0.00015616,2]
[383611094,1757032234606,-504.18,0.00015616,2]
[383611095,1757032234615,-480.0,0.00015616,2]
[383611096,1757032234626,-202.86,0.00015616,2]
[383611097,1757032234635,-480.0,0.00015616,2]
[383611098,1757032234645,-480.0,0.00015616,2]
[383611099,1757032234655,-481.24843507,0.00015616,2]
[383611100,1757032234664,-572.76,0.00015616,2]
[383611101,1757032234673,-480.0,0.00015616,2]
[383611102,1757032234683,-480.0,0.00015616,2]
[383611103,1757032234693,-480.0,0.00015616,2]
[383611104,1757032234702,-480.0,0.00015616,2]
[383611105,1757032234712,-530.99,0.00015616,2]
[383611106,1757032234722,-442.24477664,0.00015616,2]
[383611107,1757032234733,-159.08207544,0.00015616,2]
[383611108,1757032234756,-387.05998923,0.00015614,2]
[383611114,1757032238632,-480.0,0.00015342,2]
[383611115,1757032238642,-112.94001077,0.00015614,2]
[383611116,1757032238651,-500.0,0.00015614,2]
[383611117,1757032238661,-500.0,0.00015614,2]
[383611118,1757032238671,-500.0,0.00015614,2]
[383611119,1757032238683,-500.0,0.00015614,2]
[383611120,1757032238692,-500.0,0.00015614,2]
[383611121,1757032238701,-108.29998923,0.00015616,2]
[383611164,1757032240734,-212.61793533,0.00015616,2]
[383611166,1757032240744,-480.0,0.00015616,2]
[383611168,1757032240758,-334.51292463,0.00015616,2]
[383611170,1757032240768,-559.21,0.00015616,2]
[383611172,1757032240777,-481.52278622,0.00015616,2]
[383611174,1757032240786,-480.0,0.00015616,2]
[383611177,1757032240795,-480.0,0.00015616,2]
[383611180,1757032240804,-480.0,0.00015616,2]
[383611182,1757032240813,-480.0,0.00015616,2]
[383611184,1757032240823,-480.0,0.00015616,2]
[383611186,1757032240832,-480.0,0.00015616,2]
[383611187,1757032240842,-480.0,0.00015616,2]
[383611189,1757032240851,-480.0,0.00015616,2]
[383611191,1757032240860,-487.28601926,0.00015616,2]
[383611193,1757032240869,-480.0,0.00015616,2]
[383611195,1757032240879,-443.90192051,0.00015616,2]
[383611209,1757032243982,-480.0,0.00015342,2]
[383611210,1757032243992,-36.09807949,0.00015616,2]
[383611211,1757032244002,-480.0,0.00015616,2]
[383611212,1757032244012,-492.04,0.00015616,2]
[383611213,1757032244022,-480.0,0.00015616,2]
[383611214,1757032244032,-480.0,0.00015616,2]
[383611215,1757032244042,-480.0,0.00015616,2]
[383611216,1757032244051,-480.0,0.00015616,2]
[383611217,1757032244061,-480.0,0.00015616,2]
[383611218,1757032244214,-480.0,0.00015616,2]
[383611219,1757032244223,-287.95626978,0.00015616,2]
[383611220,1757032244233,-480.0,0.00015616,2]
[383611221,1757032244242,-480.0,0.00015616,2]
[383611222,1757032244252,-480.0,0.00015616,2]
[383611223,1757032244261,-565.9,0.00015616,2]
[383611224,1757032244271,-480.0,0.00015616,2]
[383611225,1757032244280,-300.0,0.00015649,2]
[383611226,1757032244290,-300.0,0.00015649,2]
[383611227,1757032244300,-300.0,0.00015649,2]
[383611228,1757032244309,-300.0,0.00015649,2]
[383611229,1757032244319,-300.0,0.00015649,2]
[383611230,1757032244329,-300.0,0.00015649,2]
[383611231,1757032244339,-300.0,0.00015649,2]
[383611232,1757032244349,-300.0,0.00015649,2]
[383611233,1757032244359,-300.0,0.00015649,2]
[383611234,1757032244369,-300.0,0.00015649,2]
[383611235,1757032244379,-300.0,0.00015649,2]
[383611236,1757032244388,-300.0,0.00015649,2]
[383611237,1757032244398,-300.0,0.00015649,2]
[383611238,1757032244407,-300.0,0.00015649,2]
[383611239,1757032244417,-300.0,0.00015649,2]
[383611240,1757032244427,-480.0,0.00015713,2]
[383611241,1757032244436,-480.0,0.00015713,2]
[383611242,1757032244445,-500.0,0.00015713,2]
[383611243,1757032244455,-480.0,0.00015716,2]
[383611244,1757032244465,-600.0,0.00015748,2]
[383611245,1757032244475,-500.0,0.00015769,2]
[383611246,1757032244485,-161.04887008,0.00015889,2]
[383611247,1757032244495,-303.45,0.00015889,2]
[383611248,1757032244504,-480.0,0.00015889,2]
[383611249,1757032244513,-480.0,0.00015889,2]
[383611250,1757032244523,-480.0,0.00015889,2]
[383611251,1757032244533,-480.0,0.00015889,2]
[383611252,1757032244543,-480.0,0.00015889,2]
[383611253,1757032244554,-480.0,0.00015889,2]
[383611254,1757032244564,-174.54,0.00015889,2]
[383611255,1757032244574,-480.0,0.00015889,2]
[383611256,1757032244583,-480.0,0.00015889,2]
[383611257,1757032244594,-480.0,0.00015889,2]
[383611258,1757032244604,-480.0,0.00015889,2]
[383611259,1757032244613,-480.0,0.00015889,2]
[383611260,1757032244623,-409.78,0.0001589,2]
[383611261,1757032244633,-490.11,0.0001589,2]
[383611262,1757032244642,-480.0,0.0001589,2]
[383611263,1757032244652,-480.0,0.0001589,2]
[383611264,1757032244661,-480.0,0.0001589,2]
[383611265,1757032244671,-480.0,0.0001589,2]
[383611266,1757032244685,-480.0,0.0001589,2]
[383611267,1757032244695,-480.0,0.0001589,2]
[383611268,1757032244704,-480.0,0.0001589,2]
[383611269,1757032244713,-480.0,0.0001589,2]
[383611270,1757032244724,-480.0,0.0001589,2]
[383611271,1757032244734,-480.0,0.0001589,2]
[383611272,1757032244743,-480.0,0.0001589,2]
[383611273,1757032244753,-480.0,0.0001589,2]
[383611274,1757032244763,-480.0,0.0001589,2]
[383611275,1757032244775,-480.0,0.0001589,2]
[383611276,1757032244791,-480.0,0.0001589,2]
[383611277,1757032244803,-480.0,0.0001589,2]
[383611278,1757032244815,-480.0,0.0001589,2]
[383611279,1757032244826,-1000.0,0.00015921,2]
[383611280,1757032244835,-1000.0,0.00015921,2]
[383611281,1757032244846,-1000.0,0.00015921,2]
[383611282,1757032244855,-480.0,0.00015987,2]
[383611283,1757032244867,-480.0,0.0001599,2]
[383611284,1757032244880,-504.1131352,0.00016083,2]
[383611285,1757032244900,-4984.42585413,0.000161,2]
[383611286,1757032244910,-500.0,0.00016157,2]
[383611287,1757032244926,-480.0,0.00016163,2]
[383611288,1757032244942,-481.02,0.00016163,2]
[383611289,1757032244954,-480.0,0.00016163,2]
[383611290,1757032244971,-480.0,0.00016163,2]
[383611291,1757032244989,-480.0,0.00016163,2]
[383611292,1757032245006,-480.0,0.00016163,2]
[383611293,1757032245025,-480.0,0.00016163,2]
[383611294,1757032245037,-480.0,0.00016164,2]
[383611295,1757032245051,-480.0,0.00016164,2]
[383611296,1757032245062,-427.7807,0.00016164,2]
[383611297,1757032245072,-480.0,0.00016164,2]
[383611298,1757032245087,-480.0,0.00016164,2]
[383611299,1757032245100,-480.0,0.00016164,2]
[383611300,1757032245116,-480.0,0.00016261,2]
[383611301,1757032245125,-166.49093637,0.00016264,2]
[383611302,1757032245136,-432.56640123,0.00016372,2]
[383611303,1757032245146,-480.0,0.00016437,2]
[383611304,1757032245155,-480.0,0.00016438,2]
[383611305,1757032245165,-480.0,0.00016438,2]
[383611306,1757032245177,-500.78631096,0.00016438,2]
[383611307,1757032245190,-480.0,0.00016711,2]
[383611308,1757032245201,-499.90823,0.00016712,2]
[383611309,1757032245215,-480.0,0.00016712,2]
[383611310,1757032245225,-217.5338025,0.00016867,2]
[383611311,1757032245235,-203.15181488,0.00016867,2]
[383611312,1757032245245,-417.15472785,0.00016867,2]
[383611313,1757032245254,-160.0,0.00016867,2]
[383611314,1757032245263,-232.93421481,0.00016867,2]
[383611315,1757032245275,-530.40833076,0.00016867,2]
[383611316,1757032245284,-846.4110323,0.00016867,2]
[383611317,1757032245294,-160.0,0.00016867,2]
[383611318,1757032245303,-480.0,0.00016985,2]
[383611319,1757032245313,-480.0,0.00016986,2]
[383611320,1757032245323,-5000.0,0.00017,2]
[383611321,1757032245333,-480.0,0.00017259,2]
[383611322,1757032245343,-628.64,0.0001726,2]
[383611323,1757032245353,-720.0,0.00017323,2]
[383611324,1757032245363,-480.0,0.00017533,2]
[383611325,1757032245372,-480.0,0.00017807,2]
[383611326,1757032245382,-302.39443742,0.00017837,2]
[383611327,1757032245391,-705.37136157,0.0001806,2]
[383611328,1757032245401,-480.0,0.00018081,2]
[383611329,1757032245410,-370.51,0.00018346,3]
[383611330,1757032245420,-185.25,0.00018346,3]
[383611331,1757032245429,-555.8,0.00018346,3]
[383611332,1757032245439,-500.0,0.00018355,2]
[383611333,1757032245450,-480.0,0.00018355,2]
[383611334,1757032245459,-480.0,0.00018629,2]
[383611335,1757032245469,-480.0,0.00018903,2]
[383611336,1757032245479,-864.0,0.00019055,20]
[383611337,1757032245488,-480.0,0.00019177,2]
[383611338,1757032245498,-500.0,0.00019275,2]
[383611339,1757032245507,-480.0,0.00019451,2]
[383611340,1757032245517,-741.02,0.00019716,3]
[383611341,1757032245527,-370.5,0.00019716,3]
[383611342,1757032245536,-480.0,0.00019725,2]
[383611343,1757032245545,-7793.37273253,0.000199,2]
[383611344,1757032245555,-480.0,0.00019999,2]
[383611345,1757032245564,-302.39443742,0.00020158,2]
[383611346,1757032245573,-530.678825,0.00020187,2]
[383611347,1757032245583,-480.0,0.00020273,2]
[383611348,1757032245592,-4026.0,0.00020445,2]
[383611349,1757032245602,-2153.0,0.00020491,2]
[383611350,1757032245611,-633.0,0.00020491,2]
[383611351,1757032245621,-491.34,0.00020547,2]
[383611352,1757032245630,-705.37136157,0.00020878,2]
[383611353,1757032245640,-1000.0,0.0002096,20]
[383611354,1757032245649,-18295.01,0.00021165,10]
[383611355,1757032245659,-21954.01,0.00021175,10]
[383611356,1757032245668,-160.0,0.00021175,10]
[383611357,1757032245677,-530.40833076,0.00021175,10]
[383611358,1757032245686,-417.15472785,0.00021175,10]
[383611359,1757032245697,-500.0,0.00021184,2]
[383611360,1757032245706,-7793.37273231,0.00021185,2]
[383611361,1757032245715,-1902.72615521,0.000219,2]
[383611362,1757032245725,-7030.4261914,0.00022,7]
[383611366,1757032326434,2000.0,0.00016029,20]
[383611367,1757032326706,2000.0,0.00016029,20]
[383611368,1757032326983,2000.0,0.00016029,20]
[383611369,1757032327936,2000.0,0.00016029,20]
[383611370,1757032328569,2000.0,0.00016029,20]
[383611376,1757032958461,1000.0,0.00029316,60]
[383611377,1757032960416,1000.0,0.00029316,60]
[383611378,1757032967490,1167.13,0.00029316,60]
[383611379,1757033152137,-333.40767059,0.00013699,2]
[383611382,1757033231217,-524.753443,0.00013699,2]
[383611383,1757033231245,-528.77134884,0.00014211,2]
[383611384,1757033236080,-265.89430376,0.00014211,2]
[383611385,1757033236103,-271.55396778,0.0001514,2]
[383611386,1757033309406,150.0,0.00027397,120]
[383611388,1757033431945,-229.65584815,0.0001514,2]
[383611389,1757033431954,-1216.76929063,0.00015173,2]
[383611390,1757033432053,-685.95686456,0.00015173,2]
[383611391,1757033432062,-704.51973597,0.00015173,2]
[383611499,1757033437804,-825.25956093,0.00015173,2]
[383611500,1757033437814,-10567.6827771,0.00015202,2]
[383611501,1757033437824,-300.0,0.00015204,2]
[383611502,1757033437833,-300.0,0.00015204,2]
[383611503,1757033437843,-300.0,0.00015204,2]
[383611504,1757033437852,-770.35,0.00015233,3]
[383611505,1757033437861,-577.79,0.00015233,3]
[383611506,1757033437871,-279.96356098,0.00015236,2]
[383611507,1757033437880,-500.0,0.00015236,2]
[383611508,1757033437889,-500.0,0.00015236,2]
[383611509,1757033437898,-500.0,0.00015236,2]
[383611510,1757033437907,-500.0,0.00015236,2]
[383611511,1757033437917,-500.0,0.00015236,2]
[383611512,1757033437926,-500.0,0.00015236,2]
[383611513,1757033437935,-500.0,0.00015236,2]
[383611514,1757033437945,-500.0,0.00015236,2]
[383611515,1757033437954,-376.46787177,0.00015236,2]
[383611516,1757033437963,-500.0,0.00015236,2]
[383611517,1757033437973,-500.0,0.00015236,2]
[383611518,1757033437983,-500.0,0.00015236,2]
[383611519,1757033437992,-500.0,0.00015236,2]
[383611520,1757033438001,-500.0,0.00015236,2]
[383611521,1757033438010,-500.0,0.00015236,2]
[383611522,1757033438019,-500.0,0.00015236,2]
[383611523,1757033438029,-433.47565267,0.00015236,2]
[383611524,1757033438037,-500.0,0.00015236,2]
[383611525,1757033438046,-500.0,0.00015236,2]
[383611526,1757033438055,-500.0,0.00015236,2]
[383611527,1757033438064,-500.0,0.00015236,2]
[383611528,1757033438074,-500.0,0.00015236,2]
[383611529,1757033438084,-500.0,0.00015236,2]
[383611530,1757033438093,-500.0,0.00015236,2]
[383611531,1757033438102,-500.0,0.00015236,2]
[383611532,1757033438111,-500.0,0.00015236,2]
[383611533,1757033438121,-310.35326999,0.00015236,2]
[383611534,1757033438130,-500.0,0.00015236,2]
[383611535,1757033438140,-500.0,0.00015236,2]
[383611536,1757033438149,-500.0,0.00015236,2]
[383611537,1757033438158,-500.0,0.00015236,2]
[383611538,1757033438167,-500.0,0.00015236,2]
[383611539,1757033438176,-500.0,0.00015236,2]
[383611540,1757033438185,-476.02926935,0.00015236,2]
[383611541,1757033438194,-174.71871286,0.00015236,2]
[383611542,1757033438204,-193.32841175,0.00015236,2]
[383611543,1757033438213,-500.0,0.00015236,2]
[383611544,1757033438222,-500.0,0.00015236,2]
[383611545,1757033438231,-500.0,0.00015236,2]
[383611546,1757033438240,-500.0,0.00015236,2]
[383611547,1757033438249,-500.0,0.00015236,2]
[383611548,1757033438258,-500.0,0.00015236,2]
[383611549,1757033438267,-500.0,0.00015236,2]
[383611550,1757033438277,-500.0,0.00015236,2]
[383611551,1757033438286,-500.0,0.00015236,2]
[383611552,1757033438295,-500.0,0.00015236,2]
[383611553,1757033438304,-500.0,0.00015236,2]
[383611554,1757033438313,-500.0,0.00015236,2]
[383611555,1757033438322,-500.0,0.00015236,2]
[383611556,1757033438335,-46602.12673699,0.00015237,2]
[383611557,1757033438345,-480.0,0.00015237,2]
[383611558,1757033438354,-480.0,0.00015237,2]
[383611559,1757033438363,-480.0,0.00015237,2]
[383611560,1757033438373,-480.0,0.00015237,2]
[383611561,1757033438382,-480.0,0.00015237,2]
[383611562,1757033438391,-823.14,0.00015237,2]
[383611563,1757033438401,-480.0,0.00015237,2]
[383611564,1757033438412,-480.0,0.00015237,2]
[383611565,1757033438422,-480.0,0.00015237,2]
[383611566,1757033438431,-480.0,0.00015237,2]
[383611567,1757033438439,-480.0,0.00015237,2]
[383611568,1757033438448,-480.0,0.00015237,2]
[383611569,1757033438458,-480.0,0.00015237,2]
[383611570,1757033438467,-480.0,0.00015237,2]
[383611571,1757033438476,-480.0,0.00015237,2]
[383611572,1757033438485,-480.0,0.00015237,2]
[383611573,1757033438494,-500.0,0.00015238,2]
[383611574,1757033438503,-302.40679741,0.00015238,2]
[383611575,1757033438512,-500.0,0.00015238,2]
[383611576,1757033438521,-500.0,0.00015238,2]
[383611577,1757033438530,-500.0,0.00015238,2]
[383611578,1757033438540,-500.0,0.00015238,2]
[383611579,1757033438550,-500.0,0.00015238,2]
[383611580,1757033438559,-500.0,0.00015238,2]
[383611581,1757033438569,-500.0,0.00015238,2]
[383611582,1757033438578,-500.0,0.00015238,2]
[383611583,1757033438588,-500.0,0.00015238,2]
[383611584,1757033438597,-500.0,0.00015238,2]
[383611585,1757033438606,-500.0,0.00015238,2]
[383611586,1757033438617,-500.0,0.00015238,2]
[383611587,1757033438626,-500.0,0.00015238,2]
[383611588,1757033438636,-426.98030181,0.00015238,2]
[383611589,1757033438646,-500.0,0.00015238,2]
[383611590,1757033438655,-480.0,0.00015239,2]
[383611591,1757033438664,-480.0,0.00015239,2]
[383611592,1757033438673,-480.0,0.00015239,2]
[383611593,1757033438683,-480.0,0.00015239,2]
[383611594,1757033438692,-480.0,0.00015239,2]
[383611595,1757033438702,-480.0,0.00015239,2]
[383611596,1757033438711,-482.54,0.00015239,2]
[383611597,1757033438720,-480.0,0.00015239,2]
[383611598,1757033438729,-480.0,0.00015239,2]
[383611599,1757033438739,-480.0,0.00015239,2]
[383611600,1757033438748,-480.0,0.00015239,2]
[383611601,1757033438757,-480.0,0.00015239,2]
[383611602,1757033438766,-480.0,0.00015239,2]
[383611603,1757033438775,-480.0,0.00015239,2]
[383611604,1757033438785,-604.56241249,0.00015239,2]
[383611605,1757033438794,-480.0,0.00015239,2]
[383611606,1757033438804,-480.0,0.00015239,2]
[383611607,1757033438814,-480.0,0.00015239,2]
[383611608,1757033438823,-480.0,0.00015239,2]
[383611609,1757033438833,-480.0,0.00015239,2]
[383611610,1757033438843,-480.0,0.00015239,2]
[383611611,1757033438853,-480.0,0.00015239,2]
[383611612,1757033438863,-480.0,0.00015239,2]
[383611613,1757033438873,-480.0,0.00015239,2]
[383611614,1757033438882,-480.0,0.00015239,2]
[383611615,1757033438892,-480.0,0.00015239,2]
[383611616,1757033438902,-480.0,0.00015239,2]
[383611617,1757033438911,-480.0,0.00015239,2]
[383611618,1757033438921,-480.0,0.00015239,2]
[383611619,1757033438931,-480.0,0.00015239,2]
[383611620,1757033438941,-480.0,0.00015239,2]
[383611621,1757033438950,-480.0,0.00015239,2]
[383611622,1757033438960,-480.0,0.00015239,2]
[383611623,1757033438969,-260.36097972,0.00015239,2]
[383611624,1757033439098,-480.0,0.00015239,2]
[383611625,1757033439109,-480.0,0.00015239,2]
[383611626,1757033439120,-480.0,0.00015239,2]
[383611627,1757033439130,-480.0,0.00015239,2]
[383611628,1757033439142,-480.0,0.00015239,2]
[383611629,1757033439152,-480.0,0.00015239,2]
[383611630,1757033439162,-480.0,0.00015239,2]
[383611631,1757033439171,-161.64,0.00015239,2]
[383611632,1757033439182,-800.94,0.00015239,2]
[383611633,1757033439192,-480.0,0.00015239,2]
[383611634,1757033439203,-610.4,0.00015239,2]
[383611635,1757033439213,-480.0,0.00015239,2]
[383611636,1757033439223,-578.23,0.00015239,2]
[383611637,1757033439232,-480.0,0.00015239,2]
[383611638,1757033439242,-480.0,0.00015239,2]
[383611639,1757033439251,-480.0,0.00015239,2]
[383611640,1757033439261,-480.0,0.00015241,2]
[383611641,1757033439270,-480.0,0.00015241,2]
[383611642,1757033439280,-604.29081918,0.00015241,2]
[383611643,1757033439289,-480.0,0.00015241,2]
[383611644,1757033439299,-319.46820256,0.00015241,2]
[383611645,1757033439310,-480.0,0.00015241,2]
[383611646,1757033439320,-480.0,0.00015241,2]
[383611647,1757033439330,-480.0,0.00015241,2]
[383611648,1757033439343,-166.81,0.00015241,2]
[383611649,1757033439352,-480.0,0.00015241,2]
[383611650,1757033439362,-480.0,0.00015241,2]
[383611651,1757033439372,-480.0,0.00015241,2]
[383611652,1757033439381,-293.34439729,0.00015241,2]
[383611653,1757033439390,-180.98794671,0.00015241,2]